[Event "*** Titled Tuesday Blitz"]
[Site "Chess.com"]
[Date "2019.05.07"]
[Round "9"]
[White "ShimanovAlex"]
[Black "SaraciNderim"]
[Result "0-1"]
[WhiteElo "2836"]
[BlackElo "2763"]
[TimeControl "180+2"]
[EndTime "15:09:55 PDT"]
[Termination "SaraciNderim won by resignation"]

1. d4 {[%clk 0:03:01.9]} 1... Nf6 {[%clk 0:02:59]} 2. Bf4 {[%clk 0:02:54]} 2...
d5 {[%clk 0:02:55.9]} 3. e3 {[%clk 0:02:52.2]} 3... c5 {[%clk 0:02:54.1]} 4. Nc3
{[%clk 0:02:41.5]} 4... e6 {[%clk 0:02:48.2]} 5. Nb5 {[%clk 0:02:39]} 5... Na6
{[%clk 0:02:48.7]} 6. h3 {[%clk 0:02:36.8]} 6... Be7 {[%clk 0:02:43.9]} 7. Nf3
{[%clk 0:02:37.8]} 7... O-O {[%clk 0:02:44.3]} 8. c3 {[%clk 0:02:36.6]} 8... Bd7
{[%clk 0:02:44.5]} 9. a4 {[%clk 0:02:37]} 9... c4 {[%clk 0:02:38.8]} 10. b3
{[%clk 0:02:36.7]} 10... cxb3 {[%clk 0:02:33]} 11. Qxb3 {[%clk 0:02:38.6]} 11...
Bc6 {[%clk 0:02:13.9]} 12. Bd3 {[%clk 0:02:37.7]} 12... Ne8 {[%clk 0:01:50.7]}
13. O-O {[%clk 0:02:35.5]} 13... Nd6 {[%clk 0:01:46.1]} 14. Ne5 {[%clk
0:02:32.4]} 14... Bxb5 {[%clk 0:01:39]} 15. axb5 {[%clk 0:02:32.3]} 15... Nc7
{[%clk 0:01:40.1]} 16. c4 {[%clk 0:02:31.4]} 16... dxc4 {[%clk 0:01:39.5]} 17.
Nxc4 {[%clk 0:02:31.2]} 17... Ncxb5 {[%clk 0:01:34.1]} 18. Nxd6 {[%clk
0:02:09.3]} 18... Nxd6 {[%clk 0:01:35.8]} 19. Bxd6 {[%clk 0:02:07]} 19... Bxd6
{[%clk 0:01:30.9]} 20. Qxb7 {[%clk 0:02:08.9]} 20... a5 {[%clk 0:01:30.9]} 21.
Qb5 {[%clk 0:02:05]} 21... Bb4 {[%clk 0:01:30.5]} 22. Bc2 {[%clk 0:02:04.5]}
22... g6 {[%clk 0:01:31.1]} 23. Rfd1 {[%clk 0:02:02.8]} 23... Qc7 {[%clk
0:01:30.2]} 24. Ba4 {[%clk 0:02:03.6]} 24... Rab8 {[%clk 0:01:29]} 25. Qe2
{[%clk 0:02:04.5]} 25... Rfc8 {[%clk 0:01:29.8]} 26. g3 {[%clk 0:02:05.6]} 26...
Kg7 {[%clk 0:01:30.2]} 27. h4 {[%clk 0:02:05.3]} 27... Qc4 {[%clk 0:01:30.9]}
28. Qf3 {[%clk 0:02:05.6]} 28... Bc3 {[%clk 0:01:31.7]} 29. Ra3 {[%clk
0:01:55.2]} 29... Rb2 {[%clk 0:01:28.6]} 30. d5 {[%clk 0:01:49.6]} 30... exd5
{[%clk 0:01:17.6]} 31. Bd7 {[%clk 0:01:36.8]} 31... Rc7 {[%clk 0:01:15.1]} 32.
Be8 {[%clk 0:01:32.1]} 32... d4 {[%clk 0:01:10.8]} 33. Ra4 {[%clk 0:01:23.9]}
33... Qe2 {[%clk 0:01:08.7]} 34. Qxe2 {[%clk 0:01:22.1]} 34... Rxe2 {[%clk
0:01:10.6]} 35. Kf1 {[%clk 0:01:20.9]} 35... Rb2 {[%clk 0:01:00.5]} 36. exd4
{[%clk 0:01:21.8]} 36... Re7 {[%clk 0:00:59.7]} 37. Ra3 {[%clk 0:01:13.2]} 37...
Bb4 {[%clk 0:00:21.4]} 38. Re3 {[%clk 0:01:13.3]} 38... Rc7 {[%clk 0:00:21]} 39.
Ba4 {[%clk 0:01:12.7]} 39... Bd6 {[%clk 0:00:19.9]} 40. d5 {[%clk 0:01:11.7]}
40... Rc4 {[%clk 0:00:18.7]} 41. Ra1 {[%clk 0:01:09.5]} 41... Bc5 {[%clk
0:00:19.1]} 42. Rf3 {[%clk 0:01:10.5]} 42... Rd4 {[%clk 0:00:19.9]} 43. Rc1
{[%clk 0:01:08.7]} 43... Rxd5 {[%clk 0:00:19.6]} 44. Bb3 {[%clk 0:01:09.7]}
44... Rf5 {[%clk 0:00:08.9]} 45. Rxf5 {[%clk 0:01:10.3]} 45... gxf5 {[%clk
0:00:10.8]} 46. Rxc5 {[%clk 0:01:10.3]} 46... Rxb3 {[%clk 0:00:12.1]} 47. Rxf5
{[%clk 0:01:09.5]} 47... a4 {[%clk 0:00:12.8]} 48. Ra5 {[%clk 0:01:10.8]} 48...
a3 {[%clk 0:00:14]} 49. Kg2 {[%clk 0:01:12.7]} 49... h6 {[%clk 0:00:15.2]} 50.
g4 {[%clk 0:01:13]} 50... Rc3 {[%clk 0:00:16.3]} 51. f3 {[%clk 0:01:13.2]} 51...
Rb3 {[%clk 0:00:17.6]} 52. Kg3 {[%clk 0:01:14.7]} 52... Rc3 {[%clk 0:00:19]} 53.
Kf4 {[%clk 0:01:16.1]} 53... Rb3 {[%clk 0:00:20.4]} 54. Kf5 {[%clk 0:01:17.4]}
54... Rxf3+ {[%clk 0:00:20.7]} 55. Ke4 {[%clk 0:01:18.5]} 55... Rb3 {[%clk
0:00:22.6]} 56. Kf4 {[%clk 0:01:18.7]} 56... Rb4+ {[%clk 0:00:23.3]} 57. Kf5
{[%clk 0:01:18.5]} 57... Rb3 {[%clk 0:00:24.6]} 58. Ra7 {[%clk 0:01:18.1]} 58...
Rh3 {[%clk 0:00:24.7]} 59. h5 {[%clk 0:01:13.6]} 59... Rf3+ {[%clk 0:00:25.2]}
60. Ke4 {[%clk 0:01:14.6]} 60... Rb3 {[%clk 0:00:26.2]} 61. Kf5 {[%clk
0:01:16.5]} 61... Rb5+ {[%clk 0:00:26.9]} 62. Kf4 {[%clk 0:01:17.2]} 62... Rb3
{[%clk 0:00:25.7]} 63. Kf5 {[%clk 0:01:19.1]} 63... Rc3 {[%clk 0:00:23.6]} 64.
Ke5 {[%clk 0:01:19.8]} 64... Kf8 {[%clk 0:00:20.9]} 65. Ra6 {[%clk 0:01:17.6]}
65... Ke7 {[%clk 0:00:19.5]} 66. Ra7+ {[%clk 0:01:14.4]} 66... Ke8 {[%clk
0:00:19.4]} 67. Ra8+ {[%clk 0:01:15.3]} 67... Kd7 {[%clk 0:00:20.6]} 68. Ra7+
{[%clk 0:01:16.7]} 68... Kc6 {[%clk 0:00:20.4]} 69. Rxf7 {[%clk 0:01:17]} 69...
Rc5+ {[%clk 0:00:21.4]} 70. Ke6 {[%clk 0:01:10.4]} 70... Ra5 {[%clk 0:00:21.8]}
71. Rf1 {[%clk 0:01:10.9]} 71... a2 {[%clk 0:00:23]} 72. Ra1 {[%clk 0:01:12.3]}
72... Kc5 {[%clk 0:00:17.2]} 73. Kf5 {[%clk 0:01:13]} 73... Kb4+ {[%clk
0:00:14]} 74. Kg6 {[%clk 0:01:14.1]} 74... Ra6+ {[%clk 0:00:11.7]} 75. Kf5
{[%clk 0:01:11.3]} 75... Kb3 {[%clk 0:00:12.9]} 76. Kf4 {[%clk 0:00:21.8]} 76...
Kb2 {[%clk 0:00:13.2]} 77. Rg1 {[%clk 0:00:17.4]} 77... a1=Q {[%clk 0:00:13.8]}
78. Rxa1 {[%clk 0:00:18.1]} 78... Rxa1 {[%clk 0:00:15]} 79. g5 {[%clk
0:00:19.5]} 79... Ra4+ {[%clk 0:00:15.6]} 80. Kg3 {[%clk 0:00:19.5]} 80... hxg5
{[%clk 0:00:15.6]} 81. h6 {[%clk 0:00:21.4]} 81... Rh4 {[%clk 0:00:16.7]} 82. h7
{[%clk 0:00:23.3]} 82... Rxh7 {[%clk 0:00:16]} 0-1

[Event "*** Titled Tuesday Blitz"]
[Site "Chess.com"]
[Date "2019.05.07"]
[Round "9"]
[White "NeverEverForever1990"]
[Black "fidezivkovic"]
[Result "1-0"]
[WhiteElo "2443"]
[BlackElo "2285"]
[TimeControl "180+2"]
[EndTime "15:10:40 PDT"]
[Termination "NeverEverForever1990 won by resignation"]

1. d4 {[%clk 0:02:38.3]} 1... Nf6 {[%clk 0:02:59.9]} 2. Nf3 {[%clk 0:02:40.1]}
2... g6 {[%clk 0:02:59.3]} 3. c4 {[%clk 0:02:32.9]} 3... Bg7 {[%clk 0:02:58.5]}
4. Nc3 {[%clk 0:02:32.8]} 4... d5 {[%clk 0:02:58.7]} 5. cxd5 {[%clk 0:02:32.1]}
5... Nxd5 {[%clk 0:02:59]} 6. e4 {[%clk 0:02:34]} 6... Nxc3 {[%clk 0:02:58.9]}
7. bxc3 {[%clk 0:02:35.9]} 7... O-O {[%clk 0:02:59]} 8. Be2 {[%clk 0:02:35.6]}
8... c5 {[%clk 0:02:59.2]} 9. O-O {[%clk 0:02:37]} 9... Nc6 {[%clk 0:02:55.3]}
10. d5 {[%clk 0:02:35.5]} 10... Na5 {[%clk 0:02:52.2]} 11. Rb1 {[%clk
0:02:13.7]} 11... c4 {[%clk 0:02:45.9]} 12. Be3 {[%clk 0:02:04.5]} 12... Bxc3
{[%clk 0:02:35.6]} 13. Nd2 {[%clk 0:01:54.5]} 13... e6 {[%clk 0:02:30.7]} 14.
Nxc4 {[%clk 0:01:47.3]} 14... exd5 {[%clk 0:02:29.3]} 15. Qxd5 {[%clk
0:01:29.3]} 15... Qxd5 {[%clk 0:02:15.1]} 16. exd5 {[%clk 0:01:31.2]} 16... Nxc4
{[%clk 0:02:13.7]} 17. Bxc4 {[%clk 0:01:33.1]} 17... b6 {[%clk 0:02:14]} 18.
Rbc1 {[%clk 0:01:25.9]} 18... Bb2 {[%clk 0:02:06.3]} 19. Rc2 {[%clk 0:01:22.3]}
19... Be5 {[%clk 0:02:05.7]} 20. Bb3 {[%clk 0:01:21.7]} 20... Bf5 {[%clk
0:02:02.8]} 21. Rc6 {[%clk 0:01:14.8]} 21... Bd7 {[%clk 0:01:57.1]} 22. Rc2
{[%clk 0:01:12.4]} 22... Rac8 {[%clk 0:01:53.6]} 23. Rfc1 {[%clk 0:01:13.1]}
23... Rxc2 {[%clk 0:01:53.3]} 24. Rxc2 {[%clk 0:01:15]} 24... Rc8 {[%clk
0:01:53.2]} 25. Rxc8+ {[%clk 0:01:14.6]} 25... Bxc8 {[%clk 0:01:53.6]} 26. a4
{[%clk 0:01:14.9]} 26... Bd7 {[%clk 0:01:47.2]} 27. f4 {[%clk 0:01:15.5]} 27...
Bd6 {[%clk 0:01:46.9]} 28. g3 {[%clk 0:01:16.2]} 28... Kf8 {[%clk 0:01:45.3]}
29. Kf2 {[%clk 0:01:15.8]} 29... Ke7 {[%clk 0:01:40]} 30. Bd4 {[%clk 0:01:16.7]}
30... Bc5 {[%clk 0:01:35.3]} 31. Ke3 {[%clk 0:01:17.4]} 31... Kd6 {[%clk
0:01:35]} 32. Kd3 {[%clk 0:01:14]} 32... Bf5+ {[%clk 0:01:33.5]} 33. Kc3 {[%clk
0:01:14.8]} 33... Bxd4+ {[%clk 0:01:28.1]} 34. Kxd4 {[%clk 0:01:16.7]} 34... Bh3
{[%clk 0:01:27.6]} 35. Bc4 {[%clk 0:01:17.1]} 35... Bg4 {[%clk 0:01:22.8]} 36.
Bb5 {[%clk 0:01:13.8]} 36... Bd1 {[%clk 0:01:21.7]} 37. h3 {[%clk 0:01:09.2]}
37... f6 {[%clk 0:01:15.1]} 38. h4 {[%clk 0:01:08]} 38... Bb3 {[%clk 0:01:08.5]}
39. Bc6 {[%clk 0:01:08.1]} 39... h6 {[%clk 0:01:01.1]} 40. Be8 {[%clk
0:01:05.1]} 40... g5 {[%clk 0:00:57]} 41. Bc6 {[%clk 0:01:02.8]} 41... gxf4
{[%clk 0:00:39.8]} 42. gxf4 {[%clk 0:01:02.8]} 42... f5 {[%clk 0:00:40]} 43. h5
{[%clk 0:00:50.1]} 43... Bd1 {[%clk 0:00:38.8]} 44. Be8 {[%clk 0:00:50.9]} 44...
Bf3 {[%clk 0:00:34.6]} 45. Bf7 {[%clk 0:00:50.4]} 45... a6 {[%clk 0:00:27.8]}
46. Kc4 {[%clk 0:00:49.7]} 46... Be2+ {[%clk 0:00:27.3]} 47. Kd4 {[%clk
0:00:49.6]} 47... a5 {[%clk 0:00:26.4]} 48. Bg6 {[%clk 0:00:42.7]} 48... Bf3
{[%clk 0:00:20.8]} 49. Bf7 {[%clk 0:00:37]} 49... Bd1 {[%clk 0:00:20.7]} 50. Be8
{[%clk 0:00:37.9]} 50... Bb3 {[%clk 0:00:19.3]} 51. Bc6 {[%clk 0:00:36.3]} 51...
Bd1 {[%clk 0:00:16.6]} 52. Be8 {[%clk 0:00:36.7]} 52... Be2 {[%clk 0:00:16.5]}
53. Bg6 {[%clk 0:00:36]} 53... Bf3 {[%clk 0:00:15.9]} 54. Bf7 {[%clk 0:00:37]}
54... Be2 {[%clk 0:00:15.6]} 55. Bg6 {[%clk 0:00:33.2]} 55... Bd1 {[%clk
0:00:15.8]} 56. Be8 {[%clk 0:00:32.3]} 56... Bb3 {[%clk 0:00:14.9]} 57. Bc6
{[%clk 0:00:32.7]} 57... Bc2 {[%clk 0:00:15.2]} 58. Be8 {[%clk 0:00:33]} 58...
Be4 {[%clk 0:00:14.5]} 59. Bf7 {[%clk 0:00:31.2]} 59... Bf3 {[%clk 0:00:14.7]}
60. Bg6 {[%clk 0:00:30.1]} 60... Bxd5 {[%clk 0:00:14.3]} 61. Bxf5 {[%clk
0:00:31.6]} 61... Bf3 {[%clk 0:00:14.6]} 62. Bg6 {[%clk 0:00:27.6]} 62... Bd1
{[%clk 0:00:14.4]} 63. Be8 {[%clk 0:00:28.8]} 63... Ke7 {[%clk 0:00:14.5]} 64.
Bb5 {[%clk 0:00:28.2]} 64... Bxh5 {[%clk 0:00:14.2]} 65. Ke5 {[%clk 0:00:29.7]}
65... Be8 {[%clk 0:00:13.6]} 66. Bxe8 {[%clk 0:00:26.3]} 66... Kxe8 {[%clk
0:00:13.9]} 67. Kf6 {[%clk 0:00:27.6]} 67... b5 {[%clk 0:00:10.3]} 68. axb5
{[%clk 0:00:27.2]} 68... a4 {[%clk 0:00:10.9]} 69. Ke6 {[%clk 0:00:20.9]} 69...
Kd8 {[%clk 0:00:10.2]} 70. f5 {[%clk 0:00:20.6]} 70... a3 {[%clk 0:00:10.5]} 71.
f6 {[%clk 0:00:22]} 71... a2 {[%clk 0:00:10.8]} 72. f7 {[%clk 0:00:23.3]} 72...
a1=Q {[%clk 0:00:10.4]} 73. f8=Q+ {[%clk 0:00:24.3]} 73... Kc7 {[%clk
0:00:11.6]} 74. Qc5+ {[%clk 0:00:24.1]} 74... Kb8 {[%clk 0:00:11.6]} 75. Qd6+
{[%clk 0:00:25.2]} 75... Kb7 {[%clk 0:00:11.7]} 76. Qc6+ {[%clk 0:00:26.1]}
76... Kb8 {[%clk 0:00:12.3]} 77. Qe8+ {[%clk 0:00:25.3]} 77... Kb7 {[%clk
0:00:12.4]} 78. Qd7+ {[%clk 0:00:26.6]} 78... Kb6 {[%clk 0:00:12.5]} 79. Qc6+
{[%clk 0:00:26.8]} 79... Ka7 {[%clk 0:00:12.8]} 80. b6+ {[%clk 0:00:27.5]} 80...
Ka6 {[%clk 0:00:12.1]} 81. Qa8+ {[%clk 0:00:28.2]} 81... Kxb6 {[%clk 0:00:11.8]}
82. Qxa1 {[%clk 0:00:30.1]} 82... Kb5 {[%clk 0:00:11.6]} 83. Qh1 {[%clk
0:00:32]} 83... Kc4 {[%clk 0:00:11.4]} 84. Qxh6 {[%clk 0:00:33.9]} 84... Kd4
{[%clk 0:00:11.1]} 85. Qh4+ {[%clk 0:00:35.8]} 1-0

[Event "*** Titled Tuesday Blitz"]
[Site "Chess.com"]
[Date "2019.05.07"]
[Round "10"]
[White "GMKrikor"]
[Black "CarrotsandPizza"]
[Result "1-0"]
[WhiteElo "2725"]
[BlackElo "2159"]
[TimeControl "180+2"]
[EndTime "15:19:13 PDT"]
[Termination "GMKrikor won by resignation"]

1. e4 {[%clk 0:03:01.9]} 1... c5 {[%clk 0:03:00.2]} 2. Nf3 {[%clk 0:03:03.1]}
2... Qb6 {[%clk 0:03:01.7]} 3. a4 {[%clk 0:02:56.4]} 3... e6 {[%clk 0:02:59.1]}
4. a5 {[%clk 0:02:57.6]} 4... Qc7 {[%clk 0:03:00]} 5. Nc3 {[%clk 0:02:58.2]}
5... a6 {[%clk 0:03:00.2]} 6. d4 {[%clk 0:02:57.8]} 6... cxd4 {[%clk 0:02:59.3]}
7. Nxd4 {[%clk 0:02:59.7]} 7... Nf6 {[%clk 0:03:00.6]} 8. Nb3 {[%clk 0:02:48.5]}
8... Bb4 {[%clk 0:02:55.7]} 9. Bd3 {[%clk 0:02:49.7]} 9... Nc6 {[%clk
0:02:55.8]} 10. O-O {[%clk 0:02:49.4]} 10... Nxa5 {[%clk 0:02:56.5]} 11. Nxa5
{[%clk 0:02:44.5]} 11... Bxa5 {[%clk 0:02:57.9]} 12. e5 {[%clk 0:02:45.7]} 12...
Qxe5 {[%clk 0:02:57.7]} 13. Re1 {[%clk 0:02:46.4]} 13... Qc7 {[%clk 0:02:58.5]}
14. Bg5 {[%clk 0:02:46.4]} 14... O-O {[%clk 0:02:59.3]} 15. Bxf6 {[%clk
0:02:46.6]} 15... gxf6 {[%clk 0:03:01]} 16. Qh5 {[%clk 0:02:45.8]} 16... Re8
{[%clk 0:02:30.1]} 17. Qxh7+ {[%clk 0:02:35.7]} 17... Kf8 {[%clk 0:02:30.9]} 18.
Nd5 {[%clk 0:02:37.3]} 1-0

[Event "*** Titled Tuesday Blitz"]
[Site "Chess.com"]
[Date "2019.05.07"]
[Round "10"]
[White "Al_Shima"]
[Black "XiaoKangZhong"]
[Result "1-0"]
[WhiteElo "2411"]
[BlackElo "2235"]
[TimeControl "180+2"]
[EndTime "15:20:21 PDT"]
[Termination "Al_Shima won by resignation"]

1. b3 {[%clk 0:03:01.9]} 1... e5 {[%clk 0:02:58]} 2. Bb2 {[%clk 0:03:03]} 2...
d6 {[%clk 0:02:59.1]} 3. e3 {[%clk 0:03:03.9]} 3... g6 {[%clk 0:03:00]} 4. Nf3
{[%clk 0:03:04]} 4... Bg7 {[%clk 0:03:01.1]} 5. d4 {[%clk 0:03:04.9]} 5... Nc6
{[%clk 0:03:00.8]} 6. Bb5 {[%clk 0:03:05.2]} 6... Bd7 {[%clk 0:02:59.1]} 7. d5
{[%clk 0:02:54.5]} 7... Nce7 {[%clk 0:02:59.6]} 8. Bxd7+ {[%clk 0:02:54.9]} 8...
Qxd7 {[%clk 0:03:00.9]} 9. c4 {[%clk 0:02:55.6]} 9... f5 {[%clk 0:03:01.6]} 10.
Ng5 {[%clk 0:02:54.6]} 10... Nf6 {[%clk 0:02:54.9]} 11. Ne6 {[%clk 0:02:54.8]}
11... Bh6 {[%clk 0:02:55.8]} 12. f4 {[%clk 0:02:54.7]} 12... Ng4 {[%clk
0:02:53.2]} 13. fxe5 {[%clk 0:02:53.7]} 13... Nxe3 {[%clk 0:02:47.6]} 14. Qe2
{[%clk 0:02:51.8]} 14... Rg8 {[%clk 0:02:44.6]} 15. Bd4 {[%clk 0:02:32.7]} 15...
Ng4 {[%clk 0:02:38.1]} 16. exd6 {[%clk 0:02:26.1]} 16... Qxd6 {[%clk 0:02:35.9]}
17. Bc5 {[%clk 0:02:18.4]} 17... Qd7 {[%clk 0:02:18.5]} 18. h3 {[%clk
0:02:06.7]} 18... Nf6 {[%clk 0:02:06.9]} 19. Bxe7 {[%clk 0:02:03.5]} 19... Kxe7
{[%clk 0:02:05.6]} 20. Nc5+ {[%clk 0:01:58.3]} 20... Ne4 {[%clk 0:02:06.3]} 21.
Nxd7 {[%clk 0:01:57.4]} 21... Bg7 {[%clk 0:02:05.4]} 22. Nd2 {[%clk 0:01:56.1]}
22... Bc3 {[%clk 0:02:04.6]} 23. O-O-O {[%clk 0:01:45.9]} 23... Kxd7 {[%clk
0:02:01.4]} 24. Nxe4 {[%clk 0:01:46.2]} 24... fxe4 {[%clk 0:02:01.9]} 1-0

[Event "*** Titled Tuesday Blitz"]
[Site "Chess.com"]
[Date "2019.05.07"]
[Round "10"]
[White "Walter_White_Poland"]
[Black "superstructure"]
[Result "1-0"]
[WhiteElo "2308"]
[BlackElo "2320"]
[TimeControl "180+2"]
[EndTime "15:21:00 PDT"]
[Termination "Walter_White_Poland won by checkmate"]

1. e4 {[%clk 0:03:01.9]} 1... e5 {[%clk 0:03:00.3]} 2. Nf3 {[%clk 0:03:02]} 2...
Nc6 {[%clk 0:03:01.5]} 3. Bb5 {[%clk 0:03:03.1]} 3... a6 {[%clk 0:03:02.6]} 4.
Ba4 {[%clk 0:03:04.3]} 4... Nf6 {[%clk 0:03:03.7]} 5. O-O {[%clk 0:03:05]} 5...
Be7 {[%clk 0:03:03.9]} 6. Re1 {[%clk 0:03:05.8]} 6... b5 {[%clk 0:03:04.9]} 7.
Bb3 {[%clk 0:03:06.4]} 7... d6 {[%clk 0:03:06.5]} 8. c3 {[%clk 0:03:06.8]} 8...
O-O {[%clk 0:03:07.1]} 9. h3 {[%clk 0:03:08.4]} 9... Nb8 {[%clk 0:03:07.7]} 10.
d4 {[%clk 0:03:07.9]} 10... Nbd7 {[%clk 0:03:06.2]} 11. Nbd2 {[%clk 0:03:08.5]}
11... Bb7 {[%clk 0:03:07.1]} 12. Bc2 {[%clk 0:03:03.9]} 12... Re8 {[%clk
0:03:07.9]} 13. Nf1 {[%clk 0:03:04.8]} 13... Bf8 {[%clk 0:03:08.8]} 14. Ng3
{[%clk 0:03:05.9]} 14... g6 {[%clk 0:03:10.1]} 15. a4 {[%clk 0:03:05.7]} 15...
c5 {[%clk 0:03:10.5]} 16. d5 {[%clk 0:03:05.3]} 16... c4 {[%clk 0:03:11.1]} 17.
Bg5 {[%clk 0:03:04.4]} 17... Qc7 {[%clk 0:03:05.8]} 18. Nh2 {[%clk 0:02:57.2]}
18... Be7 {[%clk 0:03:04.4]} 19. Rf1 {[%clk 0:02:46.8]} 19... Nxd5 {[%clk
0:03:00.5]} 20. Bxe7 {[%clk 0:02:24.9]} 20... Nxe7 {[%clk 0:03:02.4]} 21. Qd2
{[%clk 0:02:22.2]} 21... Nf8 {[%clk 0:02:21.2]} 22. Ng4 {[%clk 0:02:15]} 22...
Red8 {[%clk 0:02:00.5]} 23. Qg5 {[%clk 0:01:31.5]} 23... Nc6 {[%clk 0:01:55.6]}
24. Nh6+ {[%clk 0:01:24.5]} 24... Kg7 {[%clk 0:01:50.9]} 25. Ngf5+ {[%clk
0:01:25.3]} 25... Kh8 {[%clk 0:01:52.4]} 26. Qf6# {[%clk 0:01:26.1]} 1-0

[Event "*** Titled Tuesday Blitz"]
[Site "Chess.com"]
[Date "2019.05.07"]
[Round "10"]
[White "maxip32"]
[Black "Chebure"]
[Result "1-0"]
[WhiteElo "2457"]
[BlackElo "2593"]
[TimeControl "180+2"]
[EndTime "15:21:27 PDT"]
[Termination "maxip32 won by resignation"]

1. e4 {[%clk 0:03:01.9]} 1... c6 {[%clk 0:03:00.8]} 2. d4 {[%clk 0:03:00.6]}
2... d5 {[%clk 0:03:01.9]} 3. e5 {[%clk 0:03:01.6]} 3... c5 {[%clk 0:03:03]} 4.
dxc5 {[%clk 0:03:02.3]} 4... Nc6 {[%clk 0:03:04.4]} 5. Bb5 {[%clk 0:02:58.1]}
5... Bf5 {[%clk 0:02:48.8]} 6. Nf3 {[%clk 0:02:52.2]} 6... e6 {[%clk 0:02:43.9]}
7. Be3 {[%clk 0:02:51.9]} 7... Bg4 {[%clk 0:02:43.7]} 8. h3 {[%clk 0:02:48.2]}
8... Bxf3 {[%clk 0:02:43.3]} 9. Qxf3 {[%clk 0:02:50.1]} 9... Ne7 {[%clk
0:02:44.6]} 10. Nd2 {[%clk 0:02:48.4]} 10... Ng6 {[%clk 0:02:45]} 11. Qg3 {[%clk
0:02:47.1]} 11... Be7 {[%clk 0:02:42.2]} 12. Bd4 {[%clk 0:02:39.2]} 12... O-O
{[%clk 0:02:38.5]} 13. Bxc6 {[%clk 0:02:40.3]} 13... bxc6 {[%clk 0:02:40.4]} 14.
O-O {[%clk 0:02:41.3]} 14... Bh4 {[%clk 0:02:35.8]} 15. Qg4 {[%clk 0:02:31.8]}
15... Bg5 {[%clk 0:02:26.2]} 16. Nf3 {[%clk 0:02:32.1]} 16... Be7 {[%clk
0:02:24.9]} 17. b4 {[%clk 0:02:28.5]} 17... a5 {[%clk 0:02:24.9]} 18. c3 {[%clk
0:02:28.9]} 18... axb4 {[%clk 0:02:18.4]} 19. cxb4 {[%clk 0:02:30.8]} 19... Ra3
{[%clk 0:02:18]} 20. Bb2 {[%clk 0:02:30.9]} 20... Ra4 {[%clk 0:02:10]} 21. Rfc1
{[%clk 0:02:26.8]} 21... Qa8 {[%clk 0:02:03.8]} 22. a3 {[%clk 0:02:27.1]} 22...
Rb8 {[%clk 0:01:55.6]} 23. h4 {[%clk 0:02:25.7]} 23... h6 {[%clk 0:01:51.2]} 24.
h5 {[%clk 0:02:25.2]} 24... Nf8 {[%clk 0:01:52]} 25. Nd4 {[%clk 0:02:22.6]}
25... Qb7 {[%clk 0:01:17.2]} 26. Rab1 {[%clk 0:02:11.4]} 26... Qc7 {[%clk
0:01:10.4]} 27. Qe2 {[%clk 0:02:10.8]} 27... Nd7 {[%clk 0:01:08.4]} 28. f4
{[%clk 0:02:11.5]} 28... Qa7 {[%clk 0:00:58.8]} 29. Nxc6 {[%clk 0:02:11.1]} 1-0

[Event "*** Titled Tuesday Blitz"]
[Site "Chess.com"]
[Date "2019.05.07"]
[Round "10"]
[White "norwaytoadog"]
[Black "Eliwood44"]
[Result "1-0"]
[WhiteElo "2252"]
[BlackElo "2230"]
[TimeControl "180+2"]
[EndTime "15:21:32 PDT"]
[Termination "norwaytoadog won by checkmate"]

1. e4 {[%clk 0:03:01.9]} 1... e5 {[%clk 0:03:01.2]} 2. Nf3 {[%clk 0:03:02.8]}
2... Nc6 {[%clk 0:02:57.8]} 3. Bb5 {[%clk 0:03:03.6]} 3... g6 {[%clk 0:02:58.7]}
4. c3 {[%clk 0:03:00.8]} 4... a6 {[%clk 0:02:57.5]} 5. Ba4 {[%clk 0:03:01.1]}
5... Bg7 {[%clk 0:02:58.5]} 6. O-O {[%clk 0:02:59.8]} 6... Nge7 {[%clk
0:02:58.9]} 7. d4 {[%clk 0:02:59.3]} 7... exd4 {[%clk 0:02:59.7]} 8. cxd4 {[%clk
0:02:59.9]} 8... b5 {[%clk 0:03:01]} 9. Bb3 {[%clk 0:02:58.3]} 9... Na5 {[%clk
0:02:58]} 10. Bc2 {[%clk 0:02:57.5]} 10... O-O {[%clk 0:02:58.9]} 11. Bg5 {[%clk
0:02:50.9]} 11... h6 {[%clk 0:02:59.1]} 12. Bf4 {[%clk 0:02:48.5]} 12... d5
{[%clk 0:02:55.9]} 13. e5 {[%clk 0:02:37.2]} 13... Bg4 {[%clk 0:02:49.1]} 14.
Nbd2 {[%clk 0:02:28.9]} 14... Nc4 {[%clk 0:02:49.1]} 15. h3 {[%clk 0:02:23.2]}
15... Bxf3 {[%clk 0:02:46]} 16. Nxf3 {[%clk 0:02:15.8]} 16... Nxb2 {[%clk
0:02:47.1]} 17. Qc1 {[%clk 0:02:15.4]} 17... g5 {[%clk 0:02:44.8]} 18. Bxg5
{[%clk 0:01:47.1]} 18... hxg5 {[%clk 0:02:44]} 19. Nxg5 {[%clk 0:01:48]} 19...
Nc4 {[%clk 0:02:42.1]} 20. Qd1 {[%clk 0:01:42.8]} 20... Nf5 {[%clk 0:02:37.5]}
21. Qh5 {[%clk 0:01:30.9]} 21... Nh6 {[%clk 0:02:36.9]} 22. Rad1 {[%clk
0:01:22.5]} 22... c5 {[%clk 0:02:29.7]} 23. Rd3 {[%clk 0:01:06.5]} 23... cxd4
{[%clk 0:02:24.2]} 24. Rg3 {[%clk 0:01:03.7]} 24... Nxe5 {[%clk 0:02:24.6]} 25.
Nxf7 {[%clk 0:00:35.5]} 25... Nexf7 {[%clk 0:02:21.1]} 26. Rxg7+ {[%clk
0:00:31.5]} 26... Kxg7 {[%clk 0:02:22.2]} 27. Qg6+ {[%clk 0:00:32.4]} 27... Kh8
{[%clk 0:02:23.6]} 28. Qh7# {[%clk 0:00:33.1]} 1-0